Cogmind - Beta 13 --- EXPLORER MODE // 2024.04.21 @ 15:48:57 Player: Maddo Result: Destroyed by Y-64 Sentinel with KE Penetrator Performance ------------- Evolutions (4) 2000 Regions Visited (9) 1800 Robots Destroyed (51) 255 Value Destroyed (2499) 2499 Prototype IDs (16) 320 Alien Tech Used (0) 0 Bonus (657) 657 TOTAL SCORE: 7531 Bonus ------- High Alert Combat Kills 32 Follower Combat Kills 173 Met Imprinter 300 Was Imprinted 300 Friendly Fire -148 Cogmind --------- Core Integrity 0/850 Matter 300/300 Energy 390/390 System Corruption 1% Temperature Cool (9) Movement Walking (120) Location -6/Archives Parts ------- > --- POWER (3) -------- Light Deuterium Engine Quantum Reactor > --- PROPULSION (4) --- Carbon-fiber Leg Carbon-fiber Leg Carbon-fiber Leg > --- UTILITY (6) ------ Advanced Heat Sink Advanced Heat Sink Coolant Injector Small Storage Unit Improved Sensor Array Improved Armor Integrity Analyzer > --- WEAPON (3) ------- Advanced Variable Charge Gun Advanced Variable Charge Gun > --- INVENTORY (8) ---- Light Angular Momentum Engine Neutrino Core Centrium Heavy Treads Improved Hover Unit Heavy Laser Wave Gun GAL Module Peak State ------------ > --- POWER ------------ Light Deuterium Engine Quantum Reactor > --- PROPULSION ------- Centrium Heavy Treads Carbon-fiber Leg Carbon-fiber Leg > --- UTILITY ---------- Advanced Heat Sink Advanced Heat Sink Coolant Injector Small Storage Unit Improved Sensor Array Improved Armor Integrity Analyzer > --- WEAPON ----------- Advanced Variable Charge Gun Advanced Variable Charge Gun CR-A16's Pointy Stick > --- INVENTORY -------- Light Angular Momentum Engine Improved Hover Unit GAL Module [Rating: 82] Favorites ----------- Power Improved Deuterium Engine Engine Improved Deuterium Engine Power Core Fusion Compressor Reactor Quantum Reactor Propulsion Aluminum Leg Treads Light Treads Leg Aluminum Leg Hover Unit Improved Hover Unit Flight Unit Xenon Bombardment Thruster Utility Small Storage Unit Device Structural Scanner Storage Small Storage Unit Processor Improved Armor Integrity Analyzer Hackware System Shield Protection Power Shielding Weapon CR-A16's Pointy Stick Energy Gun Medium Laser Energy Cannon Beam Cannon Ballistic Gun Gauss Rifle Launcher Proton Missile Launcher Piercing Weapon CR-A16's Pointy Stick Build | -11 -10 -9 -9 -7 -6 -6 -6 -6 -6 ------- Run | Yrd Mat Mat Min Zio Pro Fac Ext Cet Arc Slots Evolved 9 | . 1 2 . . . 6 . . . Power 2 | . . . . . . 2 . . . Propulsion 2 | . 1 . . . . 1 . . . Utility 4 | . . 2 . . . 2 . . . Weapon 1 | . . . . . . 1 . . . Parts Attached 76 | 7 2 5 . 6 . 17 22 17 . Power 14 | 1 . . . 1 . 3 6 3 . Engine 11 | 1 . . . 1 . 2 5 2 . Core 2 | . . . . . . 1 1 . . Reactor 1 | . . . . . . . . 1 . Propulsion 24 | 2 1 1 . . . 6 8 6 . Treads 5 | . . . . . . 3 1 1 . Leg 17 | 2 1 1 . . . 3 6 4 . Wheel . | . . . . . . . . . . Hover 1 | . . . . . . . . 1 . Flight 1 | . . . . . . . 1 . . Utility 20 | 2 . 2 . 2 . 4 5 5 . Device 9 | . . 1 . . . 1 3 4 . Storage 4 | . . 1 . . . 2 1 . . Processor 3 | 1 . . . 2 . . . . . Hackware 1 | . . . . . . . . 1 . Protection 3 | 1 . . . . . 1 1 . . Artifact . | . . . . . . . . . . Weapon 18 | 2 1 2 . 3 . 4 3 3 . Energy Gun 10 | 2 . 1 . 1 . 3 1 2 . Energy Cannon 2 | . 1 1 . . . . . . . Ballistic Gun 4 | . . . . 1 . . 2 1 . Ballistic Cannon . | . . . . . . . . . . Launcher 1 | . . . . . . 1 . . . Special Weapon . | . . . . . . . . . . Impact Weapon . | . . . . . . . . . . Slashing Weapon . | . . . . . . . . . . Piercing Weapon 1 | . . . . 1 . . . . . Special Melee Weapon . | . . . . . . . . . . Unidentified Prototypes 4 | . . . . 1 . . 1 2 . Parts Lost 35 | . . . . . . 7 10 17 1 Power 8 | . . . . . . 3 1 4 . Propulsion 11 | . . . . . . 3 3 5 . Utility 10 | . . . . . . 1 4 5 . Weapon 6 | . . . . . . . 2 3 1 Highest Loss Streak 17 | . . . . . . 5 5 17 1 To Critical Strikes 3 | . . . . . . . 1 2 . Average Slot Usage (%) 92 | . 99 94 100 100 100 82 96 74 87 Engine 8 | . 12 10 10 10 10 6 9 5 6 Core 3 | . . . . . . 4 6 . . Treads 1 | . . . . . . 6 1 2 . Leg 20 | . 36 28 30 30 30 11 19 8 18 Device 8 | . . 10 10 10 10 6 5 19 25 Storage 9 | . . 7 10 10 10 9 11 6 6 Processor 12 | . 12 10 10 15 20 12 12 6 6 Protection 4 | . 12 10 10 4 . 5 6 . . Energy Gun 3 | . 13 8 10 . . 3 1 9 12 Energy Cannon 1 | . 10 8 10 3 . . . . . Ballistic Gun 5 | . . . . 5 10 4 8 1 . Launcher 1 | . . . . . . 3 1 . . Piercing Weapon 6 | . . . . 9 10 6 6 6 6 Naked Turns . | . . . . . . . . . . Heaviest Build 60 | 8 9 15 15 22 22 38 60 56 47 Greatest Support 80 | 20 30 30 30 30 30 47 66 80 45 Greatest Overweight (x) 9 | . . . . . . 2 2 9 1 Average Overweight (x) . | . . . . . . . . . . Largest Inventory Capacity 8 | 5 5 8 8 8 8 8 8 8 8 Average Capacity 7 | 5 5 7 8 8 8 6 7 8 8 Most Carried 8 | 5 5 4 3 8 7 6 8 6 7 Average Carried 5 | 1 4 2 2 6 7 3 6 3 6 Final Capacity 8 | 5 5 8 8 8 8 8 8 8 8 Final Carried 8 | 3 4 2 3 7 7 5 6 6 8 Class Distribution -------------------- 82% | Hacker-Mutant 17% | Scavenger-Mutant Dominant Class ---------------- Hacker-Mutant | -10/Materials Hacker-Mutant | -9/Materials Hacker-Mutant | -9/Mines Hacker-Mutant | -7/Zion Hacker-Mutant | -6/Proximity Caves Hacker-Mutant | -6/Factory Hacker-Mutant | -6/Extension Scavenger-Mutant | -6/Cetus Scavenger-Mutant | -6/Archives Resources | -11 -10 -9 -9 -7 -6 -6 -6 -6 -6 ----------- Run | Yrd Mat Mat Min Zio Pro Fac Ext Cet Arc Matter Collected 2947 | 270 170 58 . 33 75 331 1861 149 . Remotely . | . . . . . . . . . . Salvage Created 2836 | 38 . . 25 . 135 777 1377 325 159 Parts 132 | . . . 2 . 4 29 74 15 8 Haulers Intercepted . | . . . . . . . . . . Recyclers Shooed 1 | . . . . . . . 1 . . Parts Field Recycled . | . . . . . . . . . . Retrieved Matter . | . . . . . . . . . . Parts Self-Destructed . | . . . . . . . . . . Prevented . | . . . . . . . . . . Kills | -11 -10 -9 -9 -7 -6 -6 -6 -6 -6 ------- Run | Yrd Mat Mat Min Zio Pro Fac Ext Cet Arc Combat Hostiles Destroyed 40 | 1 . . . . 3 10 19 5 2 Melee 5 | . . . . . . . 3 2 . Guns 28 | . . . . . 3 6 14 3 2 AOE 5 | . . . . . . 3 2 . . Classes Destroyed 13 | 1 . . . . 3 4 5 . . Worker 1 | . . . . . . . 1 . . Builder 2 | . . . . . . . 2 . . Recycler 3 | . . . . . . 1 2 . . Drone 1 | . . . . . 1 . . . . Watcher 4 | . . . . . . . 3 1 . Swarmer 6 | . . . . . 2 . 4 . . Grunt 13 | 1 . . . . . 4 5 3 . Brawler 3 | . . . . . . . 3 . . Sentry 10 | . . . . . . 3 5 . 2 Hunter 2 | . . . . . . 2 . . . Programmer 2 | . . . . . . 1 1 . . Behemoth 1 | . . . . . . . 1 . . Cetus Guard 2 | . . . . . . . . 2 . Mutant 1 | . . . . . 1 . . . . Best Kill Streak 3 | 1 . . . . 2 3 3 3 1 Combat Bots Only 3 | 1 . . . . 2 3 3 3 1 Max Kills in Single Turn 2 | 1 . . . . 1 2 2 1 1 Gunslinging . | . . . . . . . . . . Exploded 1 | . . . . . . 1 1 . . Melee 1 | . . . . . . . 1 1 . Uniques/NPCs Destroyed . | . . . . . . . . . . Combat | -11 -10 -9 -9 -7 -6 -6 -6 -6 -6 -------- Run | Yrd Mat Mat Min Zio Pro Fac Ext Cet Arc Hostile Shots Fired 534 | 5 . . . . 9 151 195 160 14 Missed 176 | 2 . . . . 5 60 65 40 4 Damage Taken 4218 | 19 . . . . 38 918 1025 2060 158 Core 870 | . . . . . 11 144 130 555 30 Absorbed by Shields 70 | . . . . . . . 70 . . Redirected to Shielding 50 | . . . . . . 25 25 . . Ignored by Resistances 2582 | 12 . . . . 22 562 695 1201 90 Regen/Repaired (Parts) 299 | . . . . 41 . . 258 . . Core Remaining (%) 99 | 100 100 . . . 97 . . . . Volleys Fired 186 | 4 . . 1 . 12 49 93 21 6 Largest 2 | 2 . . 2 . 1 2 2 2 2 Hottest 160 | 100 . . 110 . 28 78 56 160 160 Shots Fired 279 | 8 . . 2 . 12 68 136 41 12 Gun 269 | 8 . . 1 . 12 59 136 41 12 Cannon 1 | . . . 1 . . . . . . Launcher 9 | . . . . . . 9 . . . Special . | . . . . . . . . . . Kinetic 167 | . . . . . 12 39 94 22 . Thermal 80 | 8 . . 2 . . 20 19 19 12 Explosive . | . . . . . . . . . . Electromagnetic 32 | . . . . . . 9 23 . . Robot Hit Streak 35 | 5 . . 6 . 7 17 35 22 14 Robot Miss Streak 4 | 1 . . . . 2 2 4 3 2 Penetration Max 1 | . . . . . . 1 1 . . Secondary Targets 1 | . . . . . . . 1 . . Max Gunslinging Chain 1 | . . . . . . . 1 . . Shots Hit Robots 254 | 7 . . 1 . 9 60 129 39 9 Core Hits 196 | 1 . . 1 . 5 25 119 39 6 Critical Kills 1 | . . . . . 1 . . . . Critical Parts Destroyed 1 | . . . . . . . 1 . . Critical Strikes 6 | . . . . . 1 2 2 1 . Burn 2 | . . . . . . 2 . . . Destroy 2 | . . . . . 1 . 1 . . Impale 2 | . . . . . . . 1 1 . Melee Attacks 20 | . . . . . . . 14 6 . Impact . | . . . . . . . . . . Slashing . | . . . . . . . . . . Piercing 20 | . . . . . . . 14 6 . Sneak Attacks 3 | . . . . . . . 3 . . Combat Hostiles . | . . . . . . . . . . Follow-up Attacks . | . . . . . . . . . . Damage Inflicted 6206 | 88 . . 17 . 176 1517 3095 1068 245 Guns 4649 | 88 . . . . 176 927 2345 868 245 Cannons 17 | . . . 17 . . . . . . Explosions 828 | . . . . . . 590 238 . . Melee 712 | . . . . . . . 512 200 . Ramming . | . . . . . . . . . . Kinetic 3321 | . . . . . 176 703 1894 548 . Thermal 1674 | 88 . . 17 . . 539 465 320 245 Explosive . | . . . . . . . . . . Electromagnetic 499 | . . . . . . 275 224 . . Impact . | . . . . . . . . . . Slashing . | . . . . . . . . . . Piercing 712 | . . . . . . . 512 200 . Highest Corruption 1 | . 1 . . . . . 1 1 1 Average Corruption 1 | . 1 . . . . . 1 1 1 Corruption Purged . | . . . . . . . . . . Corruption Blocked . | . . . . . . . . . . Effects 8 | . 1 . . . . . 1 5 1 Message Errors 2 | . . . . . . . 1 1 . Matter Fused 3 | . 1 . . . . . . 2 . Data Loss (minor) 1 | . . . . . . . . . 1 Misfires 1 | . . . . . . . . 1 . Alerts 1 | . . . . . . . . 1 . Overload Shots . | . . . . . . . . . . Overflow Damage 207 | . . . . . . 29 178 . . Projectiles . | . . . . . . . . . . Explosions 56 | . . . . . . 29 27 . . Melee 151 | . . . . . . . 151 . . Knockbacks . | . . . . . . . . . . Impact . | . . . . . . . . . . Kinetic . | . . . . . . . . . . Secondary . | . . . . . . . . . . Self-Inflicted Damage 175 | . . . . . . 175 . . . Shots 4 | . . . . . . 4 . . . Rammed . | . . . . . . . . . . Targets Rammed . | . . . . . . . . . . Kicked . | . . . . . . . . . . Crushed . | . . . . . . . . . . Highest Temperature 414 | 168 . . 39 . . 25 414 128 3 Average Temperature 111 | 90 . . 24 . . 7 118 64 3 Received Heat Transfer 1254 | 18 . . . . . 375 258 558 45 Effects 12 | . . . . . . . 12 . . Shutdowns 4 | . . . . . . . 4 . . Energy Bleed 2 | . . . . . . . 2 . . Interference 2 | . . . . . . . 2 . . Damage (minor) 2 | . . . . . . . 2 . . Damage (major) 2 | . . . . . . . 2 . . Siege Activations . | . . . . . . . . . . Robots Corrupted 1 | . . . . . . 1 . . . Combat Hostiles 1 | . . . . . . 1 . . . Parts Fried 4 | . . . . . . 3 1 . . Impact Corruptions . | . . . . . . . . . . Robots Melted 1 | 1 . . . . . . . . . Combat Hostiles 1 | 1 . . . . . . . . . Parts Melted 6 | 1 . . . . . 2 1 2 . Heat Transferred 3053 | 259 . . 37 . . 1064 916 444 333 Parts Sabotaged . | . . . . . . . . . . Parts Stolen . | . . . . . . . . . . Parts Stripped . | . . . . . . . . . . Power Chain Reactions 2 | . . . . . . . 2 . . Alert | -11 -10 -9 -9 -7 -6 -6 -6 -6 -6 ------- Run | Yrd Mat Mat Min Zio Pro Fac Ext Cet Arc Peak Influence 438 | 20 9 2 5 . . 438 215 140 61 Initial 54 | . 9 2 . . . . 54 18 1 Average 73 | 10 9 2 5 . . 153 62 29 15 Maximum Alert Level 2 | . . . . . . 2 1 . . Low Security (%) 93 | 100 100 100 100 . . 76 97 100 100 Level 1 5 | . . . . . . 18 2 . . Level 2 1 | . . . . . . 4 . . . Level 3 . | . . . . . . . . . . Level 4 . | . . . . . . . . . . Level 5 . | . . . . . . . . . . High Security . | . . . . . . . . . . Max Security . | . . . . . . . . . . Squads Dispatched 9 | . . 1 . . . 5 2 1 . Investigation 6 | . . 1 . . . 2 2 1 . Extermination 1 | . . . . . . 1 . . . Reinforcement . | . . . . . . . . . . Assault 1 | . . . . . . 1 . . . Garrison 1 | . . . . . . 1 . . . Intercept . | . . . . . . . . . . Searches Triggered . | . . . . . . . . . . Construction Impeded . | . . . . . . . . . . Haulers Reinforced . | . . . . . . . . . . Active Scanning Responses . | . . . . . . . . . . Cargo Convoy Interrupts . | . . . . . . . . . . Stealth | -11 -10 -9 -9 -7 -6 -6 -6 -6 -6 --------- Run | Yrd Mat Mat Min Zio Pro Fac Ext Cet Arc Distress Signals 2 | . . . . . . . . 2 . Communications Jammed . | . . . . . . . . . . Distress Signals . | . . . . . . . . . . Times Spotted 72 | 1 2 . . . 6 14 35 11 3 Peak Tracking Total 5 | 1 2 . . . 3 3 5 5 1 Tactical Retreats 4 | . . . . . . . 4 . . Traps | -11 -10 -9 -9 -7 -6 -6 -6 -6 -6 ------- Run | Yrd Mat Mat Min Zio Pro Fac Ext Cet Arc Traps Triggered 4 | . . 2 . . . 1 1 . . Indirectly . | . . . . . . . . . . Trap Hack Attempts . | . . . . . . . . . . Triggered . | . . . . . . . . . . Disarmed . | . . . . . . . . . . Reprogrammed . | . . . . . . . . . . Reused . | . . . . . . . . . . Traps Extracted . | . . . . . . . . . . Installed . | . . . . . . . . . . Triggered 2 | . . . . . . . 2 . . Machines | -11 -10 -9 -9 -7 -6 -6 -6 -6 -6 ---------- Run | Yrd Mat Mat Min Zio Pro Fac Ext Cet Arc Machines Disabled 19 | . . . . . . 17 2 . . Max in Single Turn 5 | . . . . . . 5 1 . . Garrison Access 1 | . . . . . . 1 . . . Machines Repaired . | . . . . . . . . . . Machines Dismantled . | . . . . . . . . . . Machines Sabotaged . | . . . . . . . . . . Overloaded Fab Kills . | . . . . . . . . . . Hacking | -11 -10 -9 -9 -7 -6 -6 -6 -6 -6 --------- Run | Yrd Mat Mat Min Zio Pro Fac Ext Cet Arc Machines Accessed 14 | . 4 1 . . . 2 4 3 . Terminals 11 | . 3 1 . . . 1 3 3 . Fabricators . | . . . . . . . . . . Repair Stations 2 | . . . . . . 1 1 . . Recycling Units 1 | . 1 . . . . . . . . Scanalyzers . | . . . . . . . . . . Garrison Access . | . . . . . . . . . . Total Hacks 42 | . 17 3 . . . 4 10 8 . Successful 35 | . 14 2 . . . 1 10 8 . Failed 7 | . 3 1 . . . 3 . . . Catastrophic 1 | . . . . . . 1 . . . Database Lockouts . | . . . . . . . . . . Manual 21 | . . . . 3 . 5 13 . . Terminals 29 | . 14 3 . . . 1 3 8 . Fabricators . | . . . . . . . . . . Repair Stations 10 | . . . . . . 3 7 . . Recycling Units 3 | . 3 . . . . . . . . Scanalyzers . | . . . . . . . . . . Garrison Access . | . . . . . . . . . . Terminal Hacks 25 | . 11 2 . . . 1 3 8 . Record 14 | . 5 2 . . . . . 7 . Robot Analysis 1 | . 1 . . . . . . . . Prototype ID Bank 2 | . 2 . . . . . . . . Open Door 5 | . . . . . . 1 3 1 . Emergency Access Points 1 | . 1 . . . . . . . . Dispatch Records 1 | . 1 . . . . . . . . Zone Layout 1 | . 1 . . . . . . . . Fabricator Hacks . | . . . . . . . . . . Repair Station Hacks 7 | . . . . . . . 7 . . Scan Component 4 | . . . . . . . 4 . . Repair 3 | . . . . . . . 3 . . Recycling Unit Hacks 3 | . 3 . . . . . . . . Recycle Component 1 | . 1 . . . . . . . . Process 1 | . 1 . . . . . . . . Report Inventory 1 | . 1 . . . . . . . . Scanalyzer . | . . . . . . . . . . Garrison Access Hacks . | . . . . . . . . . . Unauthorized Hacks . | . . . . . . . . . . Terminals . | . . . . . . . . . . Fabricators . | . . . . . . . . . . Repair Stations . | . . . . . . . . . . Recycling Units . | . . . . . . . . . . Scanalyzers . | . . . . . . . . . . Garrison Access . | . . . . . . . . . . Data Cores Recovered . | . . . . . . . . . . Used . | . . . . . . . . . . Hacking Detections 9 | . 3 1 . . . 2 1 2 . Full Trace Events 6 | . 2 1 . . . 1 1 1 . Feedback Events 1 | . 1 . . . . . . . . Corruption 1 | . 1 . . . . . . . . Feedback Blocked . | . . . . . . . . . . Robot Schematics Acquired . | . . . . . . . . . . Robots Built . | . . . . . . . . . . Authchips . | . . . . . . . . . . Time . | . . . . . . . . . . Total Robot Build Rating . | . . . . . . . . . . Part Schematics Acquired 8 | . . . . . . . 8 . . Parts Built . | . . . . . . . . . . Authchips . | . . . . . . . . . . Time . | . . . . . . . . . . Total Part Build Rating . | . . . . . . . . . . Parts Repaired 3 | . . . . . . . 3 . . Time 108 | . . . . . . . 108 . . Parts Recycled 1 | . 1 . . . . . . . . Recycled Matter 39 | . 39 . . . . . . . . Retrieved Matter . | . . . . . . . . . . Retrieved Components . | . . . . . . . . . . Parts Scanalyzed . | . . . . . . . . . . Part Schematics Acquired . | . . . . . . . . . . Parts Damaged . | . . . . . . . . . . Bothacking | -11 -10 -9 -9 -7 -6 -6 -6 -6 -6 ------------ Run | Yrd Mat Mat Min Zio Pro Fac Ext Cet Arc Used RIF Installer . | . . . . . . . . . . Robots Hacked . | . . . . . . . . . . Non-combat . | . . . . . . . . . . Combat . | . . . . . . . . . . Robot Hacks Applied . | . . . . . . . . . . Relay Couplers Released 1 | . . . . . . 1 . . . Machine Destruction 1 | . . . . . . 1 . . . Fabnet Peak Effective % . | . . . . . . . . . . Robots Rewired . | . . . . . . . . . . Allies Hacked . | . . . . . . . . . . Hacks Repelled . | . . . . . . . . . . Allies | -11 -10 -9 -9 -7 -6 -6 -6 -6 -6 -------- Run | Yrd Mat Mat Min Zio Pro Fac Ext Cet Arc Total Allies 6 | . . . . 4 . . 2 . . Largest Group 4 | . . . . 4 4 2 1 . . Highest-Rated Group 159 | . . . . 152 152 75 159 . . Highest-Rated Ally 159 | . . . . 40 40 40 159 . . Total Orders . | . . . . . . . . . . Ally Attacks 44 | . . . . . 11 8 25 . . Total Damage 813 | . . . . . 261 123 429 . . Kills 7 | . . . . . 4 1 2 . . Allies Corrupted . | . . . . . . . . . . Allies Melted . | . . . . . . . . . . Intel | -11 -10 -9 -9 -7 -6 -6 -6 -6 -6 ------- Run | Yrd Mat Mat Min Zio Pro Fac Ext Cet Arc Robot Analysis Total 1 | . 1 . . . . . . . . Derelict Logs Recovered 2 | . . . . 1 1 . . . . Drone Launches . | . . . . . . . . . . Drone Recoveries . | . . . . . . . . . . Zionite Intel Received 3 | . . . . . . . 3 . . Emergency Access 1 | . . . . . . . 1 . . Prototype Schematics 1 | . . . . . . . 1 . . Depthwide Sectors/0 1 | . . . . . . . 1 . . Exploration | -11 -10 -9 -9 -7 -6 -6 -6 -6 -6 ------------- Run | Yrd Mat Mat Min Zio Pro Fac Ext Cet Arc Turns Passed 6197 | 152 212 89 43 1235 445 1086 2267 607 61 Spaces Moved 3652 | 112 166 68 33 1008 346 504 1121 272 22 Core 28 | 15 . . . . . . . 13 . Treads 272 | . . . . . . 145 . 127 . Legs 3352 | 97 166 68 33 1008 346 359 1121 132 22 Wheels . | . . . . . . . . . . Hover . | . . . . . . . . . . Flight . | . . . . . . . . . . Fastest Speed 50 | 50 120 120 120 120 120 105 100 112 120 Average Speed 145 | 110 120 120 120 120 120 184 160 172 186 Slowest Speed 500 | 120 120 120 120 120 120 270 270 500 190 Overloaded Moves . | . . . . . . . . . . Propulsion Burnouts . | . . . . . . . . . . Robots Hopped . | . . . . . . . . . . Cave-ins Triggered . | . . . . . . . . . . Exploration Rate (%) 43 | 10 30 9 22 87 48 13 84 87 44 Regions Visited 9 Branch Regions 6 Pre-discovered Areas 12 | . . . . 1 1 . 10 . . Known Exits Taken 8 | 1 1 1 . 1 1 1 1 1 . Unknown Exits Taken 1 | . . . 1 . . . . . . Scrap Searched 3 | . . . . 2 1 . . . . Spaces Dug . | . . . . . . . . . . Terrain Destroyed 129 | . . . . . 3 110 13 3 . Melee . | . . . . . . . . . . Projectile 8 | . . . . . 3 1 1 3 . AOE 121 | . . . . . . 109 12 . . Terrain Rammed . | . . . . . . . . . . Walls Destroyed . | . . . . . . . . . . Machines Disabled . | . . . . . . . . . . Actions | -11 -10 -9 -9 -7 -6 -6 -6 -6 -6 --------- Run | Yrd Mat Mat Min Zio Pro Fac Ext Cet Arc Total 4224 | 132 180 75 34 1035 364 596 1421 357 30 Wait 201 | . 6 . . 9 7 13 139 27 . Move 3643 | 111 165 67 32 1007 345 503 1120 271 22 Hop . | . . . . . . . . . . Pick Up 74 | 10 5 3 1 7 . 8 24 14 2 Fast Attach 5 | . . . . 1 . 1 3 . . Attach 62 | 7 2 5 . 3 . 16 13 16 . Detach 10 | . . . . 2 . 6 1 1 . Swap 9 | . . . . 2 . . 6 1 . Drop 14 | . 2 . . 4 . . 8 . . Fire 186 | 4 . . 1 . 12 49 93 21 6 Melee 20 | . . . . . . . 14 6 . Ram . | . . . . . . . . . . Kick . | . . . . . . . . . . Crush . | . . . . . . . . . . Escape Stasis . | . . . . . . . . . . Rewire . | . . . . . . . . . . Trap . | . . . . . . . . . . Miscellaneous . | . . . . . . . . . . Route ------- -11/Scrapyard -10/Materials (discovered 2 exits: *Mat / *Min) -9/Materials -9/Mines -7/Zion -6/Proximity Caves -6/Factory -6/Extension (discovered 3 exits: *Fac x2 / *Cet) -6/Cetus (discovered 2 exits: *Fac / *Arc) -6/Archives History --------- Turn | Location | Event 2 | -11/Scrapyard | Met Revision 17 61 | -11/Scrapyard | Identified exit to Materials 61 | -11/Scrapyard | Discovered exit to Materials (range 8) 153 | -11/Scrapyard | Entered Materials 153 | -10/Materials | Evolved 1 slot: Propulsion x1 256 | -10/Materials | Identified exit to Mines 256 | -10/Materials | Discovered exit to Mines (range 12) 304 | -10/Materials | Build established: Hacker-Mutant 317 | -10/Materials | Identified exit to Materials 317 | -10/Materials | Discovered exit to Materials (range 18) 365 | -10/Materials | Entered another Materials area 365 | -9/Materials | Evolved 2 slots: Utility x2 438 | -9/Materials | Identified exit to Mines 438 | -9/Materials | Discovered exit to Mines (range 12) 454 | -9/Materials | Entered Mines 482 | -9/Mines | A Derelict revealed a hidden shortcut to a safe place 497 | -9/Mines | Entered Zion 537 | -7/Zion | Found CR-A16's Pointy Stick 658 | -7/Zion | Visited the Megawrench Repair Shop 658 | -7/Zion | Megawrench repaired 3 parts 684 | -7/Zion | Found GAL Module 803 | -7/Zion | Imprinted 805 | -7/Zion | Declared Zion's savior 959 | -7/Zion | Learned location of Warlord (-4) 1055 | -7/Zion | Found Prototype Processor 1059 | -7/Zion | Identified Exp. Melee Analysis Suite 1204 | -7/Zion | Learned Factory terminal intel 1685 | -7/Zion | Identified exit to Proximity Caves 1685 | -7/Zion | Discovered exit to Proximity Caves (range 11) 1732 | -7/Zion | Entered Proximity Caves 1732 | -6/Proximity Caves | Accompanied by 4 allies 2151 | -6/Proximity Caves | Identified exit to Factory 2151 | -6/Proximity Caves | Discovered exit to Factory (range 16) 2177 | -6/Proximity Caves | Entered Factory 2177 | -6/Factory | Accompanied by 2 allies 2177 | -6/Factory | Evolved 6 slots: Power x2, Propulsion x1, Utility x2, Weapon x1 2178 | -6/Factory | Loaded intel: 28 terminal locations 2337 | -6/Factory | Lost 5 parts (2p2n1u) 2712 | -6/Factory | Garrison activated, responded to threat 2939 | -6/Factory | Spotted B-75 Beast 3227 | -6/Factory | Identified exit to Extension 3227 | -6/Factory | Discovered exit to Extension (range 10) 3263 | -6/Factory | Entered Extension 3338 | -6/Extension | Disrupted transfer network 3698 | -6/Extension | Repaired Gauss Rifle 3938 | -6/Extension | Lost 5 parts (1p1n1u2w) 4092 | -6/Extension | Rescued A7 4124 | -6/Extension | Spotted B-75 Beast 4138 | -6/Extension | Spotted B-75 Beast 4168 | -6/Extension | Allies destroyed B-75 Beast 4182 | -6/Extension | Destroyed B-75 Beast 4351 | -6/Extension | Rescued a captive Derelict 4420 | -6/Extension | Retrieved Zion intel report: Emergency Access 4423 | -6/Extension | Retrieved Zion intel report: Prototype Schematics 4447 | -6/Extension | Retrieved Zion intel report: Depthwide Sectors/0 4857 | -6/Extension | Repaired Carbon-fiber Leg 4883 | -6/Extension | Repaired Sml. Storage Unit 5153 | -6/Extension | Disrupted transfer network 5314 | -6/Extension | Identified exit to Factory 5314 | -6/Extension | Discovered exit to Factory (range 3) 5350 | -6/Extension | Extracted ID and sensor layout for unrecognized location from A7's data core 5491 | -6/Extension | Build established: Scavenger-Mutant 5495 | -6/Extension | Identified exit to Cetus 5495 | -6/Extension | Discovered exit to Cetus (range 15) 5496 | -6/Extension | Discovered exit to Factory (range 15) 5530 | -6/Extension | Entered Cetus 5546 | -6/Cetus | Spotted Cetus Guard 5546 | -6/Cetus | Spotted Cetus Guard 5547 | -6/Cetus | Spotted Cetus Guard 5548 | -6/Cetus | Spotted Cetus Guard 5592 | -6/Cetus | Core integrity fell below 50% 5628 | -6/Cetus | Core integrity fell below 20% 5633 | -6/Cetus | Destroyed Cetus Guard 5642 | -6/Cetus | Destroyed Cetus Guard 5665 | -6/Cetus | Lost 17 parts (4p5n5u3w) 5719 | -6/Cetus | Discovered exit to Factory (range 15) 6047 | -6/Cetus | Identified exit to Archives 6047 | -6/Cetus | Discovered exit to Archives (range 16) 6087 | -6/Cetus | Spotted Cetus Guard 6088 | -6/Cetus | Spotted Cetus Guard 6137 | -6/Cetus | Entered Archives 6198 | -6/Archives | Destroyed by Y-64 Sentinel with KE Penetrator Last Messages --------------- 06047_ EXIT=FOUND: ARCHIVES 06091_ Penetrated by Slug. 06104_ Slug penetrates Wall. 06105_ Penetrated by Slug. LOCATION=ARCHIVES GOAL=ESCAPE 06157_ System corrupted: Component data lost. 06168_ Penetrated by Slug. 06169_ Y-64 Sentinel destroyed. 06181_ Acquired Neutrino Core. 06182_ Slug penetrates Archive Hub. 06182_ Archive Hub disabled. 06184_ Penetrated by Slug. 06190_ CR-A16's Pointy Stick destroyed. 06193_ Slug penetrates Archive Hub. 06193_ Y-64 Sentinel destroyed. 06198_ Acquired Wave Gun. 06198_ Penetrated by Slug. [Achievement: First Step to Greatness] [Achievement: 5k Club] Map ----- +----------------------------------------------------+ | | | | | | | | | | | | | | | ?????????????????????????????????????????? | | ?????????????????????????????????????????? | | ?????????????????????????????????????????? | | ?????????????????????????????????????????? | | ?????????????????????????????????????????? | | ?????????????????????????????????????????? | | ?????????????????????????????????????????? | | ?????????????????????????????????????????? | | ?????????????????????????????????????????? | | ?????????????????????????????????????????? | | ?????????????????????????????????????????? | | ?????????????????????????????????????????? | | ???????????????????#"#"##????????????????? | | ??????????????????"""""""????????????????? | | ??????????????????"""V"""#???????????????? | | ??????????????????""" """#???????????????? | | ????????????????## # = #???????????? | | ??############### !%= #??????????? | | ??# o%@ ! ""?????????? | | ??# =[ ""?????????? | | ??# o o o "?????????? | | ??#####+;######## ?????????? | | ??# #???" "?????????? | | ??# #???" "??????????? | | ??# """"""" o "??????????? | | ??#"""""""""#"V #??????????? | | ??#""""""""""""" ???????????? | | ??#"""""""""#"""" ???????????? | | ??#"""""""""#""""Y ????????????? | | ?????########???# ????????????? | | ?????????????????# #"" ??????????????? | | ?????????????????? #???????????????????? | | ?????????????????? #???????????????????? | | ?????????????????? ?????????????????????? | | ?????????????????????????????????????????? | | ?????????????????????????????????????????? | | ?????????????????????????????????????????? | | ?????????????????????????????????????????? | | ?????????????????????????????????????????? | | ?????????????????????????????????????????? | | ?????????????????????????????????????????? | | ?????????????????????????????????????????? | | ?????????????????????????????????????????? | +----------------------------------------------------+ Best States ------------- Heat Dissipation 75 Coolant Potential 65 Energy Generation 49 Energy Capacity 690 Matter Stores 450 Matter Capacity 450 Sight Range 16 Robot Scan Range 15 Terrain Scan Density 10 Additional Mass Support 9 Armor Coverage 150 Resistance: KI 35 Resistance: TH 35 Resistance: EX 35 Resistance: EM 35 Resistance: I 35 Resistance: S 35 Resistance: P 35 Power Shielding 33 Evasion (%) 55 Targeting Accuracy 5 Melee Accuracy 12 Armor Integrity Analysis 40 Recoil Reduction 2 Offensive Hacking 20 Defensive Hacking 10 Item Schematics ----------------- Cold Fusion Reactor | -6/Extension | Z-intel Biomechanical Wings | -6/Extension | Z-intel Gravity Neutralizer | -6/Extension | Z-intel Prc. Shock Rifle | -6/Extension | Z-intel Cld. Airjet | -6/Extension | Z-intel Imp. Heavy Laser | -6/Extension | Z-intel Enh. Nuclear Core | -6/Extension | Z-intel Prc. Rocket Launcher | -6/Extension | Z-intel Robot Schematics ------------------ None Fabricated ------------ Nothing Alien Tech Used ----------------- None Achievements -------------- 5k Club Backstab First Step to Greatness I'm Back, Baby! It's Just You Please Form A Line Power Corrupts Prison Break Robot Respite Serviceable Loadout The One Tourist Challenges ------------ None Game ------ Seed PropulsionTrapBeamcaster Manual? 0 Play Time 01:32:04 Cumulative 1.5 hours Start 2024.04.19 @ 23:09:29 End 2024.04.21 @ 15:48:57 Sessions 5 Manual Loads 0 Difficulty Explorer Special Mode None Game No. 3 Rogue 1 Adventurer 0 Explorer 2 Win Type - Total 0 Types 0/0/0/0/0/0/0/0/0 Lore% 5 Gallery% 6 Achievement% 8 Wizard Run 0 Options --------- Layout 1 ASCII 0 Keyboard 0 Movement Mouse Keybinds 0 Fullscreen 2 Font 32/Terminus Map View 50x35 Zoom Use 20% Tactical HUD 1 Map Filters NONE Filters NONE Steam 1 RUN: 40a34e3d-2242-4389-b457-79e37f56f5c0